Workbook

Sheet Лист1
A1: Школа | C1: МОУ СШ №103 | F1: Утвердил: | G1: должность | H1: директор ООО "Венера"
A2: Типовое примерное меню приготавливаемых блюд | G2: фамилия | H2: Иванова
A3: Возрастная категория | E3: 7-11 лет | G3: дата | H3: 12 | I3: 1 | J3: 2026
H4: день | I4: месяц | J4: год
A5: Неделя | B5: День недели | C5: Прием пищи | D5: Раздел меню | E5: Блюда | F5: Вес блюда, г | G5: Белки | H5: Жиры | I5: Углеводы | J5: Калорийность | K5: № рецептуры | L5: Цена
A6: 1 | B6: 1 | C6: Завтрак | D6: гор.блюдо | E6: Каша молочная из риса и пшена "дружба" с маслом | F6: 200 | G6: 4 | H6: 4 | I6: 23 | J6: 140 | K6: ТТК №103
D7: гор.блюдо | E7: Блинчики с молоком цельным сгущенным с сахаром | F7: 90 | G7: 8 | H7: 12 | I7: 30 | J7: 267 | K7: ТТК №387
D8: гор.напиток | E8: Чай с сахаром | F8: 200 | G8: 0 | H8: 0 | I8: 11 | J8: 43 | K8: ТТК №302
D9: хлеб | E9: Хлеб пшеничный | F9: 40 | G9: 3 | H9: 0 | I9: 19 | J9: 94 | K9: ТТК №6
D10: фрукты
D11: хлеб | L11: 135.14
D12: сладкое
D13: итого | F13: =SUM(F6:F11) -> 530 | G13: =SUM(G6:G11) -> 15 | H13: =SUM(H6:H11) -> 16 | I13: =SUM(I6:I11) -> 83 | J13: =SUM(J6:J12) -> 544 | L13: 135.14
A14: =A6 -> 1 | B14: =B6 -> 1 | C14: Обед | D14: закуска | E14: Свекла с маслом | F14: 60 | G14: 1 | H14: 4 | I14: 5 | J14: 55 | K14: ТТК №543
D15: 1 блюдо | E15: Суп картофельный с бобовыми (горох) | F15: 200 | G15: 6 | H15: 8 | I15: 15 | J15: 157 | K15: ТТК №43
D16: 2 блюдо | E16: Котлета домашняя | F16: 90 | G16: 10 | H16: 13 | I16: 12 | J16: 207 | K16: ТТК №896
D17: гарнир | E17: Макаронные изделия отварные | F17: 150 | G17: 6 | H17: 3 | I17: 26 | J17: 152 | K17: ТТК №129
D18: сладкое
D19: хлеб бел. | E19: Хлеб пшеничный | F19: 30 | G19: 2 | H19: 0 | I19: 14 | J19: 71 | K19: ТТК №6
D20: хлеб черн. | E20: Хлеб пеклеванный | F20: 40 | G20: 2 | H20: 0 | I20: 15 | J20: 76 | K20: ТТК №7
D21: фрукты
D22: напиток | E22: Чай с сахаром каркаде | F22: 200 | G22: 0 | H22: 0 | I22: 11 | J22: 43 | K22: ТТК №241
D23: итого | F23: =SUM(F14:F22) -> 770 | G23: =SUM(G14:G22) -> 27 | H23: 28 | I23: 98 | J23: 761
A24: =A6 -> 1 | B24: =B6 -> 1 | C24: Итого за день: | F24: =SUM(F13+F23) -> 1300 | G24: =SUM(G13+G23) -> 42 | H24: 44 | I24: 181 | J24: 1305 | L24: 135.14
A25: 1 | B25: 2 | C25: Завтрак | D25: гор.блюдо | E25: Котлета домашняя | F25: 90 | G25: 10 | H25: 13 | I25: 12 | J25: 207 | K25: ТТК №896
D26: гор.блюдо | E26: Макаронные изделия отварные | F26: 160 | G26: 6 | H26: 3 | I26: 28 | J26: 163 | K26: ТТК №129
D27: гор.напиток | E27: Чай с сахаром и лимоном | F27: 200 | G27: 0 | H27: 0 | I27: 11 | J27: 44 | K27: ТТК №301
D28: хлеб | E28: Хлеб пшеничный | F28: 50 | G28: 4 | H28: 0 | I28: 23 | J28: 114 | K28: ТТК №6
D29: фрукты
D30: закуска | L30: 135.14
D32: итого | F32: =SUM(F25:F31) -> 500 | G32: =SUM(G25:G31) -> 20 | H32: 16 | I32: 74 | J32: 528 | L32: 135.14
A33: =A25 -> 1 | B33: =B25 -> 2 | C33: Обед | D33: закуска | E33: Огурец соленый | F33: 60 | G33: 0 | H33: 0 | I33: 1 | J33: 8 | K33: ТТК №4
D34: 1 блюдо | E34: Щи из свежей капусты с картофелем | F34: 200 | G34: 3 | H34: 8 | I34: 10 | J34: 123 | K34: ТТК №47
D35: 2 блюдо | E35: Жаркое по-деревенски | F35: 150 | G35: 12 | H35: 10 | I35: 19 | J35: 215 | K35: ТТК №48
D36: гарнир
D37: кондитерское изделие | E37: Печенье | F37: 20 | G37: 1 | H37: 4 | I37: 8 | J37: 71 | K37: ТТК №473
D38: хлеб бел. | E38: Хлеб пшеничный | F38: 60 | G38: 5 | H38: 1 | I38: 29 | J38: 141 | K38: ТТК №6
D39: хлеб черн. | E39: Хлеб пеклеванный | F39: 60 | G39: 4 | H39: 1 | I39: 24 | J39: 118 | K39: ТТК №7
D40: фрукты
D41: напиток | E41: Чай с сахаром | F41: 200 | G41: 0 | H41: 0 | I41: 11 | J41: 43 | K41: ТТК №302
D42: итого | F42: =SUM(F33:F41) -> 750 | G42: =SUM(G33:G41) -> 25 | H42: 24 | I42: 102 | J42: 719
A43: =A25 -> 1 | B43: =B25 -> 2 | C43: Итого за день: | F43: =SUM(F32+F42) -> 1250 | G43: =SUM(G32+G42) -> 45 | H43: 40 | I43: 176 | J43: 1247 | L43: =L32+L42 -> 135.14
A44: 1 | B44: 3 | C44: Завтрак | D44: закуска | E44: Огурец соленый | F44: 100 | G44: 1 | H44: 0 | I44: 2 | J44: 11 | K44: ТТК №4
D45: гор.блюдо | E45: Плов из птицы | F45: 150 | G45: 13 | H45: 15 | I45: 32 | J45: 310 | K45: ТТК №67
D46: гор.напиток | E46: Чай с сахаром каркаде | F46: 200 | G46: 0 | H46: 0 | I46: 11 | J46: 43 | K46: ТТК №241
D47: хлеб | E47: Хлеб пшеничный | F47: 50 | G47: 4 | H47: 0 | I47: 23 | J47: 114 | K47: ТТК №6
D48: фрукты
D49: хлеб | L49: 135.14
D51: итого | F51: =SUM(F44:F50) -> 500 | G51: =SUM(G44:G50) -> 18 | H51: 15 | I51: 68 | J51: 478 | L51: =SUM(L44:L50) -> 135.14
A52: =A44 -> 1 | B52: =B44 -> 3 | C52: Обед | D52: закуска | E52: Капуста квашеная с маслом | F52: 60 | G52: 1 | H52: 4 | I52: 1 | J52: 40 | K52: ТТК №179
D53: 1 блюдо | E53: Суп с крупой (рисовая) | F53: 200 | G53: 3 | H53: 10 | I53: 9 | J53: 135 | K53: ТТК №44
D54: 2 блюдо | E54: Гречка по-купечески с филе куриным | F54: 150 | G54: 10 | H54: 12 | I54: 24 | J54: 246 | K54: ТТК №468
D55: гарнир
D56: сладкое
D57: хлеб бел. | E57: Хлеб пшеничный | F57: 60 | G57: 5 | H57: 1 | I57: 29 | J57: 141 | K57: ТТК №6
D58: хлеб черн. | E58: Хлеб пеклеванный | F58: 60 | G58: 4 | H58: 1 | I58: 24 | J58: 118 | K58: ТТК №7
D59: фрукты
D60: напиток | E60: Чай с сахаром и лимоном | F60: 200 | G60: 0 | H60: 0 | I60: 11 | J60: 44 | K60: ТТК №301
D61: итого | F61: =SUM(F52:F60) -> 730 | G61: =SUM(G52:G60) -> 23 | H61: 28 | I61: 98 | J61: 724
A62: =A44 -> 1 | B62: =B44 -> 3 | C62: Итого за день: | F62: =SUM(F51+F61) -> 1230 | G62: =SUM(G51+G61) -> 41 | H62: 43 | I62: 166 | J62: 1202 | L62: =L51+L61 -> 135.14
A63: 1 | B63: 4 | C63: Завтрак | D63: гор.блюдо | E63: Каша гречневая молочная с маслом | F63: 200 | G63: 9 | H63: 11 | I63: 26 | J63: 245 | K63: ТТК №515
D64: гор.блюдо
D65: гор.напиток | E65: Чай с сахаром | F65: 200 | G65: 0 | H65: 0 | I65: 11 | J65: 43 | K65: ТТК №302
D66: хлеб | E66: Хлеб пшеничный | F66: 50 | G66: 4 | H66: 0 | I66: 23 | J66: 114 | K66: ТТК №6
D67: фрукты | E67: Фрукты свежие (яблоко) | F67: 180 | G67: 1 | H67: 1 | I67: 17 | J67: 82 | K67: ТТК №338
D68: кондитерское изделие | E68: Печенье | F68: 20 | G68: 1 | H68: 4 | I68: 8 | J68: 71 | K68: ТТК №473 | L68: 135.14
D70: итого | F70: =SUM(F63:F69) -> 650 | G70: =SUM(G63:G69) -> 15 | H70: =SUM(H63:H69) -> 16 | I70: =SUM(I63:I69) -> 85 | J70: =SUM(J63:J69) -> 555 | L70: 135.14
A71: =A63 -> 1 | B71: =B63 -> 4 | C71: Обед | D71: закуска | E71: Свекла с маслом | F71: 60 | G71: 1 | H71: 4 | I71: 5 | J71: 55 | K71: ТТК №543
D72: 1 блюдо | E72: Рассольник ленинградский | F72: 200 | G72: 2 | H72: 5 | I72: 10 | J72: 95 | K72: ТТК №204
D73: 2 блюдо | E73: Котлеты рубленые из птицы | F73: 90 | G73: 10 | H73: 13 | I73: 10 | J73: 193 | K73: ТТК №62
D74: гарнир | E74: Макаронные изделия отварные | F74: 150 | G74: 6 | H74: 3 | I74: 26 | J74: 152 | K74: ТТК №129
D75: сладкое
D76: хлеб бел. | E76: Хлеб пшеничный | F76: 60 | G76: 5 | H76: 1 | I76: 29 | J76: 141 | K76: ТТК №6
D77: хлеб черн. | E77: Хлеб пеклеванный | F77: 30 | G77: 2 | H77: 0 | I77: 12 | J77: 57 | K77: ТТК №7
D78: фрукты
D79: напиток | E79: Чай с сахаром каркаде | F79: 200 | G79: 0 | H79: 0 | I79: 11 | J79: 43 | K79: ТТК №241
D80: итого | F80: =SUM(F71:F79) -> 790 | G80: =SUM(G71:G79) -> 26 | H80: 26 | I80: 103 | J80: 736
A81: =A63 -> 1 | B81: =B63 -> 4 | C81: Итого за день: | F81: 1260 | G81: 39 | H81: 46 | I81: 164 | J81: 1200 | L81: =L70+L80 -> 135.14
A82: 1 | B82: 5 | C82: Завтрак | D82: гор.блюдо | E82: Гречка по-купечески с филе куриным | F82: 150 | G82: 10 | H82: 12 | I82: 24 | J82: 246 | K82: ТТК №468
D83: гор.блюдо | E83: Скрэмбл | F83: 60 | G83: 5 | H83: 8 | I83: 1 | J83: 92 | K83: ТТК №925
D84: гор.напиток | E84: Чай с сахаром и лимоном | F84: 200 | G84: 0 | H84: 0 | I84: 11 | J84: 44 | K84: ТТК №301
D85: хлеб | E85: Хлеб пшеничный | F85: 40 | G85: 3 | H85: 0 | I85: 19 | J85: 94 | K85: ТТК №6 | L85: 135.14
D86: сладкое
D87: закуска | E87: Свекла отварная | F87: 100 | G87: 1 | H87: 0 | I87: 9 | J87: 41 | K87: ТТК №5
D89: итого | F89: =SUM(F82:F88) -> 550 | G89: =SUM(G82:G88) -> 19 | H89: 20 | I89: 64 | J89: 517 | L89: =SUM(L82:L88) -> 135.14
A90: =A82 -> 1 | B90: =B82 -> 5 | C90: Обед | D90: закуска | E90: Свекла отварная | F90: 60 | G90: 1 | H90: 0 | I90: 5 | J90: 24 | K90: ТТК №5
D91: 1 блюдо | E91: Щи из свежей капусты с картофелем | F91: 200 | G91: 3 | H91: 8 | I91: 10 | J91: 123 | K91: ТТК №47
D92: 2 блюдо | E92: Плов из птицы | F92: 150 | G92: 13 | H92: 15 | I92: 32 | J92: 310 | K92: ТТК №67
D93: гарнир
D94: сладкое
D95: хлеб бел. | E95: Хлеб пшеничный | F95: 50 | G95: 4 | H95: 0 | I95: 23 | J95: 114 | K95: ТТК №6
D96: хлеб черн. | E96: Хлеб пеклеванный | F96: 50 | G96: 3 | H96: 1 | I96: 19 | J96: 96 | K96: ТТК №7
D97: фрукты
D98: напиток | E98: Чай с сахаром | F98: 200 | G98: 0 | H98: 0 | I98: 11 | J98: 43 | K98: ТТК №302
D99: итого | F99: =SUM(F90:F98) -> 710 | G99: =SUM(G90:G98) -> 24 | H99: 24 | I99: 100 | J99: =SUM(J90:J98) -> 710
A100: =A82 -> 1 | B100: =B82 -> 5 | C100: Итого за день: | F100: =SUM(F89+F99) -> 1260 | G100: =SUM(G89+G99) -> 43 | H100: 44 | I100: 164 | J100: 1227 | L100: 135.14
A101: 2 | B101: 1 | C101: Завтрак | D101: гор.блюдо | E101: Котлеты рубленые из птицы | F101: 90 | G101: 10 | H101: 13 | I101: 10 | J101: 193 | K101: ТТК №62
D102: гор.блюдо | E102: Макаронные изделия отварные | F102: 150 | G102: 6 | H102: 3 | I102: 26 | J102: 152 | K102: ТТК №129
D103: гор.напиток | E103: Чай с сахаром | F103: 200 | G103: 0 | H103: 0 | I103: 11 | J103: 43 | K103: ТТК №302
D104: хлеб | E104: Хлеб пшеничный | F104: 60 | G104: 5 | H104: 1 | I104: 29 | J104: 141 | K104: ТТК №6 | L104: 135.14
D105: фрукты
D106: закуска
D108: итого | F108: =SUM(F101:F107) -> 500 | G108: 21 | H108: 17 | I108: =SUM(I101:I107) -> 75 | J108: 529 | L108: =SUM(L101:L107) -> 135.14
A109: =A101 -> 2 | B109: =B101 -> 1 | C109: Обед | D109: закуска | E109: Помидор соленый | F109: 60 | G109: 1 | H109: 0 | I109: 1 | J109: 9 | K109: ТТК №27
D110: 1 блюдо | E110: Борщ с капустой и картофелем | F110: 200 | G110: 1 | H110: 9 | I110: 8 | J110: 118 | K110: ТТК №28
D111: 2 блюдо | E111: Котлета рыбная (минтай) | F111: 90 | G111: 11 | H111: 9 | I111: 13 | J111: 176 | K111: ТТК №77
D112: гарнир | E112: Каша рисовая с овощами | F112: 150 | G112: 4 | H112: 4 | I112: 39 | J112: 210 | K112: ТТК №180
D113: сладкое
D114: хлеб бел. | E114: Хлеб пшеничный | F114: 30 | G114: 2 | H114: 0 | I114: 15 | J114: 71 | K114: ТКК №6
D115: хлеб черн. | E115: Хлеб пеклеванный | F115: 40 | G115: 2 | H115: 0 | I115: 15 | J115: 76 | K115: ТТК №7
D116: напиток | E116: Сок/нектар в ассортименте | F116: 200 | G116: 1 | H116: 0 | I116: 20 | J116: 83 | K116: ТТК №343
D117: напиток | E117: Чай с сахаром каркаде | F117: 200 | G117: 0 | H117: 0 | I117: 11 | J117: 43 | K117: ТТК №241
D118: итого | F118: =SUM(F109:F117) -> 970 | G118: =SUM(G109:G117) -> 22 | H118: 22 | I118: 122 | J118: 787
A119: =A101 -> 2 | B119: =B101 -> 1 | C119: Итого за день: | F119: =SUM(F108+F118) -> 1470 | G119: =SUM(G108+G118) -> 43 | H119: 39 | I119: 197 | J119: 1315 | L119: =L108+L118 -> 135.14
A120: 2 | B120: 2 | C120: Завтрак | D120: гор.блюдо | E120: Каша молочная кукурузная с творогом | F120: 200 | G120: 7 | H120: 8 | I120: 30 | J120: 217 | K120: ТТК №653
D121: гор.блюдо
D122: гор.напиток | E122: Чай с сахаром и лимоном | F122: 200 | G122: 0 | H122: 0 | I122: 11 | J122: 44 | K122: ТТК №301
D123: хлеб | E123: Хлеб пшеничный | F123: 50 | G123: 4 | H123: 0 | I123: 23 | J123: 114 | K123: ТТК №6
D124: фрукты | L124: 135.14
D125: хлеб | E125: Бутерброд с сыром 35/10/5 | F125: 50 | G125: 5 | H125: 7 | I125: 17 | J125: 152 | K125: ТТК №380
D127: итого | F127: =SUM(F120:F126) -> 500 | G127: =SUM(G120:G126) -> 16 | H127: 15 | I127: 82 | J127: 527 | L127: =SUM(L120:L126) -> 135.14
A128: =A120 -> 2 | B128: =B120 -> 2 | C128: Обед | D128: закуска | E128: Капуста квашеная с маслом | F128: 60 | G128: 1 | H128: 4 | I128: 1 | J128: 40 | K128: ТТК №179
D129: 1 блюдо | E129: Суп картофельный с макаронными изделиями | F129: 200 | G129: 5 | H129: 10 | I129: 17 | J129: 176 | K129: ТТК№46
D130: 2 блюдо | E130: Гречка по-купечески с филе куриным | F130: 150 | G130: 10 | H130: 12 | I130: 24 | J130: 246 | K130: ТТК №468
D131: гарнир
D132: сладкое
D133: хлеб бел. | E133: Хлеб пшеничный | F133: 40 | G133: 3 | H133: 0 | I133: 19 | J133: 94 | K133: ТТК №6
D134: хлеб черн. | E134: Хлеб пеклеванный | F134: 60 | G134: 4 | H134: 1 | I134: 24 | J134: 118 | K134: ТТК №7
D135: напиток | E135: Чай с сахаром | F135: 200 | G135: 0 | H135: 0 | I135: 11 | J135: 43 | K135: ТТК №302
D136: напиток
D137: итого | F137: =SUM(F128:F136) -> 710 | G137: =SUM(G128:G136) -> 23 | H137: 27 | I137: 96 | J137: 717
A138: =A120 -> 2 | B138: =B120 -> 2 | C138: Итого за день: | F138: =SUM(F127+F137) -> 1210 | G138: =SUM(G127+G137) -> 39 | H138: 42 | I138: 178 | J138: 1244 | L138: =L127+L137 -> 135.14
A139: 2 | B139: 3 | C139: Завтрак | D139: гор.блюдо | E139: Вареники с картофелем со сливочным маслом | F139: 180 | G139: 10 | H139: 15 | I139: 46 | J139: 357 | K139: ТТК №513
D140: гор.блюдо
D141: гор.напиток | E141: Чай с сахаром каркаде | F141: 200 | G141: 0 | H141: 0 | I141: 11 | J141: 43 | K141: ТТК №241
D142: хлеб | E142: Хлеб пшеничный | F142: 60 | G142: 5 | H142: 1 | I142: 29 | J142: 141 | K142: ТТК №6
D143: хлеб
D144: закуска | E144: Помидор соленый | F144: 60 | G144: 1 | H144: 0 | I144: 1 | J144: 9 | K144: ТТК №27 | L144: 135.14
D146: итого | F146: =SUM(F139:F145) -> 500 | G146: =SUM(G139:G145) -> 16 | H146: 16 | I146: 87 | J146: 550 | L146: =SUM(L139:L145) -> 135.14
A147: =A139 -> 2 | B147: =B139 -> 3 | C147: Обед | D147: закуска | E147: Огурец соленый | F147: 60 | G147: 0 | H147: 0 | I147: 1 | J147: 8 | K147: ТТК №4
D148: 1 блюдо | E148: Суп картофельный с бобовыми (горох) | F148: 200 | G148: 6 | H148: 8 | I148: 15 | J148: 157 | K148: ТТК №43
D149: 2 блюдо | E149: Плов из птицы | F149: 150 | G149: 13 | H149: 15 | I149: 32 | J149: 310 | K149: ТТК №67
D150: гарнир
D151: сладкое
D152: хлеб бел. | E152: Хлеб пшеничный | F152: 40 | G152: 3 | H152: 0 | I152: 19 | J152: 94 | K152: ТТК №6
D153: хлеб черн. | E153: Хлеб пеклеванный | F153: 50 | G153: 3 | H153: 1 | I153: 19 | J153: 96 | K153: ТТК №7
D154: фрукты
D155: напиток | E155: Чай с сахаром и лимоном | F155: 200 | G155: 0 | H155: 0 | I155: 11 | J155: 44 | K155: ТТК №301
D156: итого | F156: =SUM(F147:F155) -> 700 | G156: =SUM(G147:G155) -> 25 | H156: 24 | I156: 97 | J156: 709
A157: =A139 -> 2 | B157: =B139 -> 3 | C157: Итого за день: | F157: =SUM(F146+F156) -> 1200 | G157: =SUM(G146+G156) -> 41 | H157: 40 | I157: 184 | J157: 1259 | L157: =L146+L156 -> 135.14
A158: 2 | B158: 4 | C158: Завтрак | D158: гор.блюдо | E158: Котлета рыбная (минтай) | F158: 90 | G158: 11 | H158: 9 | I158: 13 | J158: 176 | K158: ТТК №77
D159: гор.блюдо | E159: Макаронные изделия отварные | F159: 150 | G159: 6 | H159: 3 | I159: 26 | J159: 152 | K159: ТТК №129
D160: гор.напиток | E160: Чай с сахаром | F160: 200 | G160: 0 | H160: 0 | I160: 11 | J160: 43 | K160: ТТК №302
D161: хлеб | E161: Хлеб пшеничный | F161: 20 | G161: 2 | H161: 0 | I161: 10 | J161: 47 | K161: ТТК №6 | L161: 135.14
D162: напиток | E162: Сок/нектар в ассортименте | F162: 200 | G162: 1 | H162: 0 | I162: 20 | J162: 83 | K162: ТТК №343
D163: кондитерское изделие | E163: Печенье | F163: 20 | G163: 1 | H163: 4 | I163: 8 | J163: 71 | K163: ТТК №473
D165: итого | F165: =SUM(F158:F164) -> 680 | G165: =SUM(G158:G164) -> 21 | H165: 16 | I165: 88 | J165: 572 | L165: =SUM(L158:L164) -> 135.14
A166: =A158 -> 2 | B166: =B158 -> 4 | C166: Обед | D166: закуска | E166: Свекла отварная | F166: 60 | G166: 1 | H166: 0 | I166: 5 | J166: 24 | K166: ТТК №5
D167: 1 блюдо | E167: Щи из свежей капусты с картофелем | F167: 200 | G167: 3 | H167: 8 | I167: 10 | J167: 123 | K167: ТТК№47
D168: 2 блюдо | E168: Пельмени отварные со сливочным маслом | F168: 200 | G168: 15 | H168: 18 | I168: 52 | J168: 431 | K168: ТТК №116
D169: гарнир
D170: сладкое
D171: хлеб бел. | E171: Хлеб пшеничный | F171: 20 | G171: 2 | H171: 0 | I171: 10 | J171: 47 | K171: ТТК №6
D172: хлеб черн. | E172: Хлеб пеклеванный | F172: 30 | G172: 2 | H172: 0 | I172: 12 | J172: 57 | K172: ТТК №7
D173: фрукты
D174: напиток | E174: Чай с сахаром каркаде | F174: 200 | G174: 0 | H174: 0 | I174: 11 | J174: 43 | K174: ТТК №241
D175: итого | F175: =SUM(F166:F174) -> 710 | G175: =SUM(G166:G174) -> 23 | H175: 26 | I175: 100 | J175: 725
A176: =A158 -> 2 | B176: =B158 -> 4 | C176: Итого за день: | F176: 1210 | G176: 49 | H176: 43 | I176: 189 | J176: 1303 | L176: =L165+L175 -> 135.14
A177: 2 | B177: 5 | C177: Завтрак | D177: гор.блюдо | E177: Каша вязкая молочная из риса и пшена Дружба с маслом | F177: 200 | G177: 4 | H177: 4 | I177: 23 | J177: 140 | K177: ТТК №103
D178: гор.блюдо | E178: Блинчики с молоком цельным сгущенным с сахаром | F178: 90 | G178: 8 | H178: 12 | I178: 30 | J178: 267 | K178: ТТК №387
D179: гор.напиток | E179: Чай с сахаром и лимоном | F179: 200 | G179: 0 | H179: 0 | I179: 11 | J179: 44 | K179: ТТК №301
D180: хлеб | E180: Хлеб пшеничный | F180: 40 | G180: 3 | H180: 0 | I180: 19 | J180: 94 | K180: ТТК №6 | L180: 135.14
D181: фрукты
D182: напиток
D183: кондитерское изделие
D184: итого | F184: =SUM(F177:F183) -> 530 | G184: =SUM(G177:G183) -> 16 | H184: 16 | I184: 83 | J184: 545 | L184: =SUM(L177:L183) -> 135.14
A185: =A177 -> 2 | B185: =B177 -> 5 | C185: Обед | D185: закуска | E185: Помидор соленый | F185: 60 | G185: 1 | H185: 0 | I185: 1 | J185: 9 | K185: ТТК №27
D186: 1 блюдо | E186: Рассольник ленинградский | F186: 200 | G186: 2 | H186: 10 | I186: 10 | J186: 95 | K186: ТТК№204
D187: 2 блюдо | E187: Вареники с картофелем и курицей со сливочным маслом | F187: 150 | G187: 12 | H187: 17 | I187: 43 | J187: 369 | K187: ТТК №564
D188: гарнир
D189: кондитерское изделие | E189: Печенье | F189: 20 | G189: 1 | H189: 4 | I189: 8 | J189: 71 | K189: ТТК №473
D190: хлеб бел. | E190: Хлеб пшеничный | F190: 40 | G190: 3 | H190: 3 | I190: 19 | J190: 94 | K190: ТТК №6
D191: хлеб черн. | E191: Хлеб пеклеванный | F191: 60 | G191: 4 | H191: 1 | I191: 24 | J191: 118 | K191: ТТК №7
D192: фрукты
D193: напиток | E193: Чай с сахаром | F193: 180 | G193: 0 | H193: 0 | I193: 10 | J193: 38 | K193: ТТК №302
D194: итого | F194: =SUM(F185:F193) -> 710 | G194: =SUM(G185:G193) -> 23 | H194: 35 | I194: 115 | J194: 794
A195: =A177 -> 2 | B195: =B177 -> 5 | C195: Итого за день: | F195: =SUM(F184+F194) -> 1240 | G195: =SUM(G184+G194) -> 39 | H195: 51 | I195: 198 | J195: 1339 | L195: =L184+L194 -> 135.14
C196: Среднее значение за период: | F196: =(F24+F43+F62+F81+F100+F119+F138+F157+F176+F195)/(IF(F24=0,0,1)+IF(F43=0,0,1)+IF(F62=0,0,1)+IF(F81=0,0,1)+IF(F100=0,0,1)+IF(F119=0,0,1)+IF(F138=0,0,1)+IF(F157=0,0,1)+IF(F176=0,0,1)+IF(F195=0,0,1)) -> 1263 | G196: =(G24+G43+G62+G81+G100+G119+G138+G157+G176+G195)/(IF(G24=0,0,1)+IF(G43=0,0,1)+IF(G62=0,0,1)+IF(G81=0,0,1)+IF(G100=0,0,1)+IF(G119=0,0,1)+IF(G138=0,0,1)+IF(G157=0,0,1)+IF(G176=0,0,1)+IF(G195=0,0,1)) -> 42.066 | H196: 43.273 | I196: 179.723 | J196: 1264.155 | L196: =(L24+L43+L62+L81+L100+L119+L138+L157+L176+L195)/(IF(L24=0,0,1)+IF(L43=0,0,1)+IF(L62=0,0,1)+IF(L81=0,0,1)+IF(L100=0,0,1)+IF(L119=0,0,1)+IF(L138=0,0,1)+IF(L157=0,0,1)+IF(L176=0,0,1)+IF(L195=0,0,1)) -> 135.14
